fUSD/lending_fUSD_20250116
["ID","MTS","AMOUNT","RATE_DAILY","PERIOD"]
[349237777,1737067834184,-4667.86,0.00031061,3]
[349237778,1737067834195,-4667.86,0.00031061,3]
[349237779,1737067834205,-500.0,0.00031061,3]
[349237780,1737067834215,-500.0,0.00031061,3]
[349237781,1737067834225,-500.0,0.00031061,3]
[349237782,1737067834234,-500.0,0.00031061,3]
[349237783,1737067834244,-500.0,0.00031061,3]
[349237784,1737067834254,-500.0,0.00031061,3]
[349237785,1737067834264,-781.55,0.00031061,3]
[349237786,1737067834273,-781.55,0.00031061,3]
[349237787,1737067834283,-500.0,0.00031061,3]
[349237788,1737067834293,-4549.69,0.00031061,3]
[349237789,1737067834303,-500.0,0.00031061,3]
[349237790,1737067834312,-563.48356718,0.00031061,3]
[349237791,1737067834322,-500.0,0.00031061,3]
[349237792,1737067834332,-3669.31,0.00031061,3]
[349237793,1737067834341,-607.93,0.00031061,3]
[349237794,1737067834351,-504.38567085,0.00031061,3]
[349237795,1737067834361,-3083.68,0.00031061,3]
[349237796,1737067834371,-3083.68,0.00031061,3]
[349237797,1737067834380,-500.0,0.00031061,3]
[349237798,1737067834390,-500.0,0.00031061,3]
[349237799,1737067834400,-500.0,0.00031061,3]
[349237800,1737067834409,-3366.91,0.00031061,3]
[349237801,1737067834420,-500.0,0.00031061,3]
[349237802,1737067834430,-500.0,0.00031061,3]
[349237803,1737067834440,-500.0,0.00031061,3]
[349237804,1737067834450,-500.0,0.00031061,3]
[349237805,1737067834460,-7505.83,0.00031061,3]
[349237806,1737067834470,-7505.83,0.00031061,3]
[349237807,1737067834480,-500.0,0.00031061,3]
[349237808,1737067834489,-500.0,0.00031061,3]
[349237809,1737067834499,-500.0,0.00031061,3]
[349237810,1737067834509,-500.0,0.00031061,3]
[349237811,1737067834519,-500.0,0.00031061,3]
[349237812,1737067834529,-83.77656982,0.00031061,3]
[349237813,1737067834545,-454.09029476,0.00031061,3]
[349237814,1737067834554,-165.90970524,0.00031061,3]
[349237815,1737067834570,-80.51945776,0.00031061,3]
[349237816,1737067834580,-500.0,0.00031061,3]
[349237817,1737067834591,-1009.61,0.00031061,3]
[349237818,1737067834600,-54.37054224,0.00031061,3]
[349237819,1737067834726,-955.23945776,0.00031061,3]
[349237820,1737067834735,-496.01054002,0.00031061,3]
[349237824,1737067838371,-3.98945998,0.00031061,3]
[349237825,1737067838380,-500.0,0.00031061,3]
[349237826,1737067838390,-500.0,0.00031061,3]
[349237827,1737067838399,-1317.53,0.00031061,3]
[349237828,1737067838408,-172.97665586,0.00031061,3]
[349237829,1737067838418,-500.0,0.00031061,2]
[349237830,1737067838428,-500.0,0.00031061,3]
[349237831,1737067838438,-500.0,0.00031061,3]
[349237832,1737067838447,-500.0,0.00031061,3]
[349237833,1737067838458,-336.61688416,0.00031061,3]
[349237834,1737067838470,-163.38311584,0.00031061,3]
[349237835,1737067838479,-500.0,0.00031061,3]
[349237836,1737067838489,-500.0,0.00031061,3]
[349237837,1737067838499,-244.47205217,0.00031061,3]
[349237838,1737067838510,-255.52794783,0.00031061,3]
[349237839,1737067838519,-500.0,0.00031061,3]
[349237840,1737067838529,-500.0,0.00031061,3]
[349237841,1737067838539,-20.63000257,0.00031061,3]
[349237842,1737067838562,-5724.26999743,0.00031061,3]
[349237843,1737067838572,-500.0,0.00031061,3]
[349237844,1737067838581,-500.0,0.00031061,3]
[349237845,1737067838591,-500.0,0.00031061,3]
[349237846,1737067838600,-2525.58,0.00031061,3]
[349237847,1737067838610,-2525.58,0.00031061,3]
[349237848,1737067838620,-500.0,0.00031061,3]
[349237849,1737067838630,-500.0,0.00031061,3]
[349237850,1737067838641,-812.5,0.00031061,3]
[349237851,1737067838651,-500.0,0.00031061,3]
[349237852,1737067838661,-500.0,0.00031061,3]
[349237853,1737067838670,-500.0,0.00031061,3]
[349237854,1737067838679,-500.0,0.00031061,3]
[349237855,1737067838689,-500.0,0.00031061,3]
[349237856,1737067838698,-500.0,0.00031061,3]
[349237857,1737067838708,-500.0,0.00031061,3]
[349237858,1737067838717,-500.0,0.00031061,3]
[349237860,1737067838726,-500.0,0.00031061,3]
[349237861,1737067838735,-500.0,0.00031061,3]
[349237863,1737067838745,-1365.29,0.00031061,3]
[349237865,1737067838755,-1365.29,0.00031061,3]
[349237867,1737067838764,-500.0,0.00031061,3]
[349237869,1737067838774,-500.0,0.00031061,3]
[349237871,1737067838784,-500.0,0.00031061,3]
[349237873,1737067838793,-500.0,0.00031061,3]
[349237875,1737067838803,-1581.89,0.00031061,3]
[349237877,1737067838812,-500.0,0.00031061,3]
[349237879,1737067838824,-500.98184117,0.00031061,3]
[349237881,1737067838834,-500.0,0.00031061,3]
[349237883,1737067838843,-500.0,0.00031061,3]
[349237885,1737067838852,-500.0,0.00031061,3]
[349237887,1737067838862,-500.0,0.00031061,3]
[349237889,1737067838871,-500.0,0.00031061,3]
[349237891,1737067838881,-4091.82,0.00031061,3]
[349237893,1737067838890,-4091.82,0.00031061,3]
[349237895,1737067838900,-500.0,0.00031061,3]
[349237897,1737067838909,-500.0,0.00031061,3]
[349237899,1737067838919,-500.0,0.00031061,3]
[349237901,1737067838928,-1175.62,0.00031061,3]
[349237903,1737067838937,-500.0,0.00031061,3]
[349237905,1737067838946,-2902.89557739,0.00031061,3]
[349237908,1737067838966,-771.42442261,0.00031061,3]
[349237910,1737067838976,-177.10557739,0.00031061,3]
[349238074,1737067840580,-781.83,0.0003106,3]
[349238076,1737067840589,-946.23442261,0.00031061,3]
[349238078,1737067840598,-1123.34,0.00031061,3]
[349238080,1737067840607,-421.86557745,0.00031061,3]
[349238083,1737067840726,-78.13442255,0.00031061,3]
[349238084,1737067840735,-500.0,0.00031061,3]
[349238085,1737067840744,-500.0,0.00031061,3]
[349238086,1737067840753,-536.53379845,0.00031061,3]
[349238088,1737067840765,-270.9005,0.00031061,3]
[349238090,1737067840776,-950.73570155,0.00031061,3]
[349238092,1737067840785,-500.0,0.00031061,3]
[349238094,1737067840794,-841.76,0.00031061,3]
[349238096,1737067840803,-583.1602868,0.00031061,3]
[349238099,1737067840815,-385.82968183,0.00031061,3]
[349238219,1737067843515,-360.20251,0.00031061,3]
[349238221,1737067843558,-428.97752137,0.00031061,3]
[349238222,1737067843568,-500.0,0.00031061,3]
[349238223,1737067843578,-500.0,0.00031061,3]
[349238224,1737067843587,-500.0,0.00031061,3]
[349238225,1737067843596,-500.0,0.00031061,3]
[349238226,1737067843606,-500.0,0.00031061,3]
[349238227,1737067843615,-500.0,0.00031061,3]
[349238228,1737067843625,-820.87,0.00031061,3]
[349238229,1737067843634,-500.0,0.00031061,3]
[349238230,1737067843644,-500.0,0.00031061,3]
[349238231,1737067843655,-502.15463328,0.00031061,3]
[349238232,1737067843667,-781.83,0.00031061,3]
[349238233,1737067843680,-5593.83,0.00031061,3]
[349238234,1737067843689,-510.13113045,0.00031061,3]
[349238235,1737067843698,-5593.83,0.00031061,3]
[349238236,1737067843708,-500.0,0.00031061,3]
[349238237,1737067843717,-619.07702,0.00031062,30]
[349238238,1737067843726,-501.39196759,0.00031062,3]
[349238239,1737067843735,-500.0,0.00031062,3]
[349238240,1737067843744,-500.0,0.00031062,3]
[349238241,1737067843753,-500.0,0.00031062,3]
[349238242,1737067843763,-500.0,0.00031062,3]
[349238243,1737067843772,-500.0,0.00031062,3]
[349238244,1737067843781,-476.44805618,0.00031062,3]
[349238245,1737067843791,-500.0,0.00031062,3]
[349238246,1737067843801,-500.0,0.00031062,3]
[349238247,1737067843810,-500.0,0.00031062,3]
[349238248,1737067843820,-500.0,0.00031062,3]
[349238249,1737067843833,-500.0,0.00031062,3]
[349238250,1737067843842,-500.0,0.00031062,3]
[349238251,1737067843851,-500.0,0.00031062,3]
[349238252,1737067843861,-500.0,0.00031062,3]
[349238253,1737067843870,-500.0,0.00031062,3]
[349238254,1737067843879,-146.45967513,0.00031062,3]
[349238256,1737067843904,-500.0,0.00031061,3]
[349238258,1737067843914,-353.54032487,0.00031062,3]
[349238260,1737067843923,-500.0,0.00031062,3]
[349238261,1737067843933,-500.0,0.00031062,3]
[349238262,1737067843941,-500.0,0.00031062,3]
[349238263,1737067843951,-316.64936342,0.00031062,3]
[349238264,1737067843960,-500.0,0.00031062,3]
[349238265,1737067843971,-500.0,0.00031062,2]
[349238266,1737067843979,-500.0,0.00031062,3]
[349238267,1737067843989,-500.0,0.00031062,3]
[349238268,1737067843998,-500.0,0.00031062,3]
[349238280,1737067844131,-500.0,0.00031062,3]
[349238282,1737067844140,-584.99,0.00031062,3]
[349238284,1737067844150,-500.0,0.00031062,3]
[349238285,1737067844159,-500.0,0.00031062,3]
[349238286,1737067844168,-500.0,0.00031062,3]
[349238287,1737067844178,-500.0,0.00031062,3]
[349238288,1737067844188,-500.0,0.00031062,3]
[349238289,1737067844197,-500.0,0.00031062,3]
[349238290,1737067844208,-500.37600263,0.00031062,3]
[349238291,1737067844217,-500.0,0.00031062,3]
[349238292,1737067844227,-500.0,0.00031062,3]
[349238293,1737067844236,-500.0,0.00031062,3]
[349238294,1737067844246,-42.6640102,0.00031062,3]
[349238295,1737067844262,-500.0,0.00031061,3]
[349238296,1737067844271,-457.3359898,0.00031062,3]
[349238297,1737067844280,-519.21492947,0.00031062,3]
[349238298,1737067844289,-471.29708073,0.00031062,3]
[349238299,1737067844313,-351.67291927,0.00031062,3]
[349238300,1737067844324,-168.89798822,0.00031062,3]
[349238303,1737067846697,-500.0,0.00031061,3]
[349238304,1737067846707,-500.0,0.00031061,3]
[349238305,1737067846717,-331.10201178,0.00031062,3]
[349238306,1737067846726,-500.0,0.00031062,3]
[349238307,1737067846735,-500.0,0.00031062,3]
[349238308,1737067846745,-500.0,0.00031062,3]
[349238309,1737067846754,-382.49798322,0.00031062,3]
[349238310,1737067846765,-117.50201678,0.00031062,3]
[349238311,1737067846775,-412.04198022,0.00031062,3]
[349238312,1737067846786,-87.95801978,0.00031062,3]
[349238313,1737067846795,-500.0,0.00031062,3]
[349238314,1737067846804,-55.66197822,0.00031062,3]
[349238315,1737067846831,-445.0794241,0.00031062,3]
[349238316,1737067846841,-500.0,0.00031062,3]
[349238317,1737067846850,-117.70760635,0.00031062,3]
[349238318,1737067846893,-382.29239365,0.00031062,3]
[349238319,1737067846905,-500.0,0.00031062,3]
[349238320,1737067846914,-500.0,0.00031062,3]
[349238321,1737067846924,-500.0,0.00031062,3]
[349238322,1737067846933,-500.0,0.00031062,3]
[349238323,1737067846943,-500.0,0.00031062,3]
[349238324,1737067846952,-500.0,0.00031062,3]
[349238325,1737067846961,-500.0,0.00031062,3]
[349238326,1737067846971,-500.0,0.00031062,3]
[349238327,1737067846981,-501.33627234,0.00031062,3]
[349238328,1737067846990,-500.0,0.00031062,3]
[349238329,1737067847000,-500.0,0.00031062,3]
[349238330,1737067847009,-507.30507255,0.00031062,3]
[349238331,1737067847019,-547.22,0.00031062,3]
[349238332,1737067847028,-814.66,0.00031062,3]
[349238334,1737067847038,-503.18,0.00031062,3]
[349238336,1737067847048,-500.0,0.00031062,3]
[349238338,1737067847058,-500.0,0.00031062,3]
[349238340,1737067847067,-500.0,0.00031062,3]
[349238342,1737067847076,-1588.59846485,0.00031062,3]
[349238351,1737068155692,1942.41,0.00012,2]
[349238352,1737068162971,3000.0,0.00012,2]
[349238353,1737068163411,3000.01,0.00012,2]
[349238354,1737068171551,1330.3,0.00012,2]
[349238355,1737068181622,180.59,0.00012,2]
[349238356,1737068181644,2819.41,0.00012,2]
[349238357,1737068208394,183.01,0.00012329,2]
[349238363,1737068448035,158.93,0.00010137,2]
[349238366,1737068577421,2000.0,0.00015,30]
[349238368,1737068618881,200.0,0.00018,30]
[349238369,1737068633280,2000.0,0.00018,30]
[349238376,1737068825147,-211.75176225,0.00023903,2]
[349238377,1737068825170,-2972.30669378,0.00023903,2]
[349238378,1737068825192,-294.0,0.0002395,2]
[349238379,1737068825214,-1959.20740513,0.00024003,2]
[349238380,1737068832122,-169.25807483,0.00024003,2]
[349238381,1737068839086,-374.72682025,0.00024003,2]
[349238382,1737068839107,-174.34,0.00024103,2]
[349238383,1737068839132,-294.0,0.0002476,2]
[349238384,1737068839153,-294.0,0.0002557,2]
[349238385,1737068839177,-294.0,0.0002638,2]
[349238386,1737068839199,-294.0,0.0002719,2]
[349238387,1737068839223,-286.39419534,0.00028,2]
[349238413,1737069031579,-500.0,0.00021,2]
[349238414,1737069031589,-334.6735,0.00021,2]
[349238415,1737069031651,-165.3265,0.00021,2]
[349238416,1737069031660,-691.45826554,0.00021,2]
[349238417,1737069031670,-500.0,0.000261,30]
[349238418,1737069031680,-500.0,0.000261,30]
[349238419,1737069031690,-500.0,0.000261,30]
[349238420,1737069031700,-300.0,0.00026999,2]
[349238421,1737069031709,-550.0,0.00027,2]
[349238422,1737069031720,-213.60580466,0.00028,2]
[349238423,1737069031729,-294.0,0.0002801,2]
[349238424,1737069031739,-294.0,0.0002882,2]
[349238425,1737069031748,-5982.39749433,0.00028949,2]
[349238426,1737069031759,-3002.4789392,0.00028949,2]
[349238427,1737069031770,-5005.90035051,0.00028949,2]
[349238428,1737069031790,-541.345,0.00028949,2]
[349238429,1737069031801,-8606.92847332,0.00028949,2]
[349238430,1737069031812,-11653.94974264,0.00028949,2]
[349238431,1737069031822,-600.0,0.00029,2]
[349238432,1737069031832,-420.0,0.00029189,2]
[349238433,1737069031841,-261.14,0.00029342,2]
[349238434,1737069031852,-23900.0,0.00029347,2]
[349238435,1737069031862,-716.0,0.00029537,2]
[349238436,1737069031871,-4474.695,0.00029538,23]
[349238437,1737069031881,-170.062,0.00029538,23]
[349238438,1737069031891,-150.99,0.00029538,2]
[349238439,1737069031901,-150.99,0.00029538,2]
[349238440,1737069031911,-294.0,0.0002963,2]
[349238441,1737069031921,-1000.0,0.00029654,2]
[349238442,1737069031930,-250.0,0.00029765,2]
[349238443,1737069031939,-151.0,0.0002982,2]
[349238444,1737069031948,-151.0,0.0003,120]
[349238445,1737069031958,-521.34,0.00030054,120]
[349238446,1737069031968,-250.0,0.00030088,2]
[349238447,1737069031978,-150.0,0.00030116,2]
[349238448,1737069031987,-772.46,0.00030141,2]
[349238449,1737069031997,-248.86,0.00030278,2]
[349238450,1737069032006,-150.0,0.00030378,2]
[349238451,1737069032016,-294.0,0.0003044,2]
[349238452,1737069032026,-1100.0,0.000305,11]
[349238453,1737069032035,-2200.0,0.000306,11]
[349238454,1737069032044,-158.12,0.00030685,2]
[349238455,1737069032053,-150.0,0.00030685,2]
[349238456,1737069032063,-150.0,0.00030685,2]
[349238457,1737069032072,-3300.0,0.000307,11]
[349238458,1737069032083,-201.0,0.00030753,3]
[349238459,1737069032092,-429.93842545,0.00030773,2]
[349238460,1737069032102,-4400.0,0.000308,11]
[349238461,1737069032111,-5500.0,0.000309,11]
[349238462,1737069032120,-999.92,0.00031,30]
[349238463,1737069032130,-3687.53303972,0.00031,3]
[349238464,1737069032139,-479.0,0.00031041,2]
[349238465,1737069032148,-718.81,0.00031058,3]
[349238466,1737069032158,-5890.56,0.00031058,3]
[349238467,1737069032167,-2846.47,0.00031058,3]
[349238468,1737069032177,-2846.47,0.00031058,3]
[349238469,1737069032186,-4495.69,0.00031058,3]
[349238470,1737069032197,-716.42,0.00031058,3]
[349238471,1737069032208,-2969.03,0.00031058,3]
[349238472,1737069032219,-2467.39,0.00031058,3]
[349238473,1737069032228,-2467.39,0.00031058,3]
[349238474,1737069032237,-7240.59,0.00031058,3]
[349238475,1737069032247,-925.48,0.00031058,3]
[349238476,1737069032256,-2065.88,0.00031058,3]
[349238478,1737069032265,-2065.88,0.00031058,3]
[349238480,1737069032275,-500.0,0.00031058,3]
[349238482,1737069032284,-2459.14,0.00031058,3]
[349238484,1737069032294,-500.0,0.00031058,3]
[349238486,1737069032303,-500.0,0.00031058,3]
[349238488,1737069032312,-1376.52,0.00031058,3]
[349238490,1737069032321,-4012.17,0.00031058,3]
[349238492,1737069032330,-4012.17,0.00031058,3]
[349238494,1737069032339,-500.0,0.00031058,3]
[349238496,1737069032349,-500.0,0.00031058,3]
[349238498,1737069032358,-500.0,0.00031058,3]
[349238500,1737069032367,-4011.72,0.00031058,3]
[349238502,1737069032376,-500.0,0.00031058,3]
[349238504,1737069032386,-500.0,0.00031058,3]
[349238506,1737069032395,-1050.56,0.00031058,3]
[349238508,1737069032404,-1050.56,0.00031058,3]
[349238510,1737069032413,-780.21,0.00031058,3]
[349238511,1737069032423,-780.21,0.00031058,3]
[349238512,1737069032434,-780.21,0.00031058,3]
[349238513,1737069032443,-780.21,0.00031058,3]
[349238514,1737069032452,-2101.55,0.00031058,3]
[349238515,1737069032462,-500.0,0.00031058,3]
[349238516,1737069032471,-500.0,0.00031058,3]
[349238517,1737069032480,-500.0,0.00031059,3]
[349238518,1737069032490,-500.0,0.00031059,3]
[349238519,1737069032499,-500.0,0.00031059,3]
[349238520,1737069032508,-500.0,0.00031059,3]
[349238521,1737069032519,-500.0,0.00031059,3]
[349238522,1737069032529,-500.0,0.00031059,3]
[349238523,1737069032538,-500.0,0.00031059,3]
[349238524,1737069032548,-500.0,0.00031059,3]
[349238525,1737069032557,-500.0,0.00031059,3]
[349238526,1737069032567,-500.0,0.00031059,3]
[349238527,1737069032577,-500.0,0.00031059,3]
[349238528,1737069032587,-500.0,0.00031059,3]
[349238529,1737069032598,-500.0,0.00031059,3]
[349238530,1737069032607,-504.57904756,0.00031059,3]
[349238531,1737069032616,-505.71240962,0.00031059,3]
[349238532,1737069032626,-341.03599096,0.00031059,3]
[349238533,1737069032636,-500.0,0.00031059,3]
[349238534,1737069032646,-500.0,0.00031059,3]
[349238535,1737069032655,-500.0,0.00031059,3]
[349238536,1737069032664,-500.0,0.00031059,3]
[349238537,1737069032674,-500.0,0.00031059,3]
[349238538,1737069032683,-500.0,0.00031059,3]
[349238539,1737069032693,-500.0,0.00031059,3]
[349238540,1737069032703,-2676.56,0.00031059,3]
[349238541,1737069032713,-370.27,0.00031059,3]
[349238542,1737069032723,-499.77,0.00031059,2]
[349238543,1737069032732,-3703.49,0.00031059,3]
[349238544,1737069032742,-191.68839425,0.00031059,3]
[349238545,1737069032751,-500.0,0.00031059,3]
[349238546,1737069032761,-5814.31,0.00031059,3]
[349238547,1737069032770,-500.0,0.00031059,3]
[349238548,1737069032780,-500.0,0.00031059,3]
[349238549,1737069032789,-500.0,0.00031059,3]
[349238550,1737069032799,-3699.01,0.00031059,3]
[349238551,1737069032808,-500.0,0.00031059,3]
[349238552,1737069032818,-500.0,0.00031059,3]
[349238553,1737069032828,-500.0,0.00031059,3]
[349238554,1737069032838,-500.0,0.00031059,3]
[349238555,1737069032847,-500.0,0.00031059,3]
[349238556,1737069032857,-500.0,0.00031059,3]
[349238557,1737069032866,-3061.93,0.00031059,3]
[349238558,1737069032875,-500.0,0.00031059,3]
[349238559,1737069032885,-500.0,0.00031059,3]
[349238560,1737069032895,-500.0,0.00031059,3]
[349238561,1737069032905,-500.0,0.00031059,3]
[349238562,1737069032915,-2344.161047,0.00031059,3]
[349238563,1737069032925,-503.64279561,0.00031059,3]
[349238564,1737069032935,-500.0,0.00031059,3]
[349238565,1737069032945,-5612.32,0.00031059,3]
[349238566,1737069032954,-5612.32,0.00031059,3]
[349238567,1737069032963,-5612.32,0.00031059,3]
[349238568,1737069032973,-5612.32,0.00031059,3]
[349238569,1737069032983,-5612.32,0.00031059,3]
[349238570,1737069032992,-500.0,0.00031059,3]
[349238571,1737069033002,-500.0,0.00031059,3]
[349238572,1737069033012,-156.428756,0.00031059,3]
[349238573,1737069033022,-9297.96,0.00031059,3]
[349238574,1737069033032,-226.11255344,0.00031059,3]
[349238575,1737069033041,-3256.35,0.00031059,3]
[349238576,1737069033196,-3256.35,0.00031059,3]
[349238577,1737069033208,-3256.35,0.00031059,3]
[349238578,1737069033218,-3256.35,0.00031059,3]
[349238579,1737069033228,-3256.35,0.00031059,3]
[349238580,1737069033238,-500.0,0.00031059,3]
[349238581,1737069033249,-500.0,0.00031059,3]
[349238582,1737069033259,-2347.598322,0.00031059,3]
[349238583,1737069033268,-159.521197,0.00031059,3]
[349238584,1737069033279,-500.0,0.00031059,3]
[349238585,1737069033288,-6680.64,0.00031059,3]
[349238586,1737069033298,-6680.64,0.00031059,3]
[349238587,1737069033308,-6680.64,0.00031059,3]
[349238588,1737069033317,-11300.76,0.00031059,3]
[349238589,1737069033326,-6680.64,0.00031059,3]
[349238590,1737069033337,-6680.64,0.00031059,3]
[349238591,1737069033346,-157.458091,0.00031059,3]
[349238592,1737069033357,-507.92713779,0.00031059,3]
[349238593,1737069033367,-500.0,0.00031059,3]
[349238594,1737069033377,-500.0,0.00031059,3]
[349238595,1737069033387,-500.0,0.00031059,3]
[349238596,1737069033396,-500.0,0.00031059,3]
[349238597,1737069033406,-500.0,0.00031059,3]
[349238598,1737069033415,-500.0,0.00031059,3]
[349238599,1737069033425,-6850.38,0.00031059,3]
[349238600,1737069033435,-2200.54,0.00031059,3]
[349238601,1737069033444,-2200.54,0.00031059,3]
[349238602,1737069033454,-2200.54,0.00031059,3]
[349238603,1737069033463,-2200.54,0.00031059,3]
[349238604,1737069033473,-2200.54,0.00031059,3]
[349238605,1737069033483,-2554.8,0.00031059,3]
[349238606,1737069033493,-500.0,0.00031059,3]
[349238607,1737069033503,-2709.9,0.00031059,3]
[349238608,1737069033513,-2709.9,0.00031059,3]
[349238609,1737069033523,-2709.9,0.00031059,3]
[349238610,1737069033532,-2709.9,0.00031059,3]
[349238611,1737069033541,-2709.9,0.00031059,3]
[349238612,1737069033551,-1904.24,0.00031059,3]
[349238613,1737069033561,-1847.32,0.00031059,3]
[349238614,1737069033570,-362.59647995,0.00031059,3]
[349238615,1737069033580,-3590.31,0.00031059,2]
[349238616,1737069033589,-3590.31,0.00031059,2]
[349238617,1737069033599,-3590.31,0.00031059,2]
[349238618,1737069033610,-3590.31,0.00031059,2]
[349238619,1737069033619,-3590.31,0.00031059,2]
[349238620,1737069033630,-718.81,0.00031059,3]
[349238621,1737069033640,-718.81,0.00031059,3]
[349238622,1737069033650,-718.81,0.00031059,3]
[349238623,1737069033660,-718.81,0.00031059,3]
[349238624,1737069033670,-718.81,0.00031059,3]
[349238625,1737069033680,-718.81,0.00031059,3]
[349238626,1737069033690,-500.0,0.00031059,3]
[349238627,1737069033699,-5200.62,0.00031059,3]
[349238628,1737069033708,-5200.62,0.00031059,3]
[349238629,1737069033719,-5200.62,0.00031059,3]
[349238630,1737069033730,-5200.62,0.00031059,3]
[349238631,1737069033740,-5200.62,0.00031059,3]
[349238632,1737069033751,-1821.8,0.00031059,3]
[349238633,1737069033761,-5890.56,0.00031059,3]
[349238634,1737069033771,-5890.56,0.00031059,3]
[349238635,1737069033781,-5890.56,0.00031059,3]
[349238636,1737069033791,-5890.56,0.00031059,3]
[349238637,1737069033800,-5890.56,0.00031059,3]
[349238638,1737069033810,-5890.56,0.00031059,3]
[349238639,1737069033820,-500.0,0.00031059,3]
[349238640,1737069033829,-500.0,0.00031059,3]
[349238641,1737069033839,-2293.55,0.00031059,3]
[349238642,1737069033848,-2293.55,0.00031059,3]
[349238643,1737069033857,-2293.55,0.00031059,3]
[349238644,1737069033867,-2293.55,0.00031059,3]
[349238645,1737069033877,-2293.55,0.00031059,3]
[349238646,1737069033887,-440.57066798,0.00031059,3]
[349238647,1737069033896,-500.0,0.00031059,3]
[349238648,1737069033905,-2846.47,0.00031059,3]
[349238649,1737069033915,-2846.47,0.00031059,3]
[349238650,1737069033925,-2846.47,0.00031059,3]
[349238651,1737069033935,-4495.69,0.00031059,3]
[349238652,1737069033944,-4495.69,0.00031059,3]
[349238653,1737069033954,-4495.69,0.00031059,3]
[349238654,1737069033964,-4495.69,0.00031059,3]
[349238655,1737069033973,-4495.69,0.00031059,3]
[349238656,1737069033984,-4495.69,0.00031059,3]
[349238657,1737069033993,-2846.47,0.00031059,3]
[349238658,1737069034003,-1836.58,0.00031059,3]
[349238659,1737069034013,-2846.47,0.00031059,3]
[349238660,1737069034022,-2846.47,0.00031059,3]
[349238661,1737069034032,-9172.82,0.00031059,3]
[349238662,1737069034041,-9172.82,0.00031059,3]
[349238663,1737069034051,-2846.47,0.00031059,3]
[349238664,1737069034060,-9172.82,0.00031059,3]
[349238665,1737069034070,-9172.82,0.00031059,3]
[349238666,1737069034079,-2846.47,0.00031059,3]
[349238667,1737069034089,-9172.82,0.00031059,3]
[349238668,1737069034099,-716.42,0.00031059,3]
[349238669,1737069034109,-500.0,0.00031059,3]
[349238670,1737069034118,-716.42,0.00031059,3]
[349238671,1737069034127,-1600.17,0.00031059,3]
[349238672,1737069034136,-716.42,0.00031059,3]
[349238673,1737069034146,-716.42,0.00031059,3]
[349238674,1737069034156,-716.42,0.00031059,3]
[349238675,1737069034165,-716.42,0.00031059,3]
[349238676,1737069034175,-548.6,0.00031059,3]
[349238677,1737069034184,-2891.93,0.00031059,3]
[349238678,1737069034194,-2891.93,0.00031059,3]
[349238679,1737069034207,-2891.93,0.00031059,3]
[349238680,1737069034217,-2891.93,0.00031059,3]
[349238681,1737069034226,-2891.93,0.00031059,3]
[349238682,1737069034236,-2969.03,0.00031059,3]
[349238683,1737069034247,-2969.03,0.00031059,3]
[349238684,1737069034257,-500.0,0.00031059,3]
[349238685,1737069034267,-2969.03,0.00031059,3]
[349238686,1737069034277,-2969.03,0.00031059,3]
[349238687,1737069034287,-2969.03,0.00031059,3]